Workbook

Sheet LT 132 3150 31,5 3P 31 110
B1: TECHNICAL SCHEDULES A & B FOR 6,6 kV to 765 kV
B2: OUTDOOR CIRCUIT-BREAKERS
B3: ="SAP: "&G12&" "&E11 -> SAP: _________ BKR 132kV 3150A 40kA 3P 31 110VDC
B5: Schedule A: Purchasers specific requirements
B6: Schedule B: Guarantees and technical particulars of equipment offered
B8: 1 | C8: 2 | E8: 3 | G8: 4 | H8: 5
B9: Item | C9: Clause of 240-56063756 | D9: Description | G9: Schedule A | H9: Schedule B
B10: 1 | D10: Item and system description
E11: BKR 132kV 3150A 40kA 3P 31 110VDC
B12: 1.1 | D12: · | E12: SAP No | G12: =VLOOKUP($E$11,$M$589:$AP$608,3,FALSE) -> _________ | H12: xxxxxxxxxx
B13: 1.2 | D13: · | E13: Buyers Guide Drawing | G13: =VLOOKUP($E$11,$M$589:$AP$608,2,FALSE) -> _________ | H13: xxxxxxxxxx
B14: 1.3 | C14: 2.1.1 | D14: · | E14: Circuit-breaker application | G14: =VLOOKUP($E$11,$M$589:$AP$608,27,FALSE) -> General-purpose | H14: xxxxxxxxxx
B15: 1.4 | C15: 3.1.1 | D15: · | E15: Nominal system voltage (Un) | F15: kV | G15: =VLOOKUP($E$11,$M$589:$AP$608,28,FALSE) -> 132 | H15: xxxxxxxxxx
B16: 1.5 | D16: · | E16: System voltage range | F16: pu | G16: 0,9 to 1,1 | H16: xxxxxxxxxx
B17: 1.6 | C17: 3.2.1 | D17: · | E17: System earthing (effective/non effective) | G17: =VLOOKUP($E$11,$M$589:$AP$608,29,FALSE) -> Non-effective | H17: xxxxxxxxxx
B19: 2 | D19: Ratings
B20: 2.1 | C20: 3.1.1 | D20: · | E20: Rated voltage (Ur) | F20: kV | G20: =VLOOKUP($E$11,$M$589:$AP$608,4,FALSE) -> 145
B21: 2.2 | C21: 3.1.1 | D21: · | E21: Number of phases on system | G21: 3
B22: 2.3 | C22: 3.1.2 | D22: · | E22: Rated short-duration power-frequency withstand voltage (Ud) - Phase-to-earth and between phases | F22: kV | G22: =VLOOKUP($E$11,$M$589:$AP$608,5,FALSE) -> 275
B23: 2.4 | C23: 3.1.2 | D23: · | E23: Rated short-duration power-frequency withstand voltage (Ud) - Phase-to-earth and between phases - under Wet conditions as per SANS 62271-1 cl. 6.2 (Ur ≤ 245kV) | F23: kV | G23: xxxxxxxxxx
B24: 2.5 | C24: 3.1.2 | D24: · | E24: Rated short-duration power-frequency withstand voltage (Ud) - Across open switching device (under Dry conditions) | F24: kV | G24: 315
B25: 2.6 | C25: 3.1.2 | D25: · | E25: Rated short-duration power-frequency withstand voltage (Ud) - Across open switching device (under Wet conditions) | F25: kV | G25: xxxxxxxxxx
B26: 2.7 | C26: 3.1.2 | D26: · | E26: Rated short-duration power-frequency withstand voltage (Ud) - under Wet conditions as per SANS 62271-1 cl. 6.2 (Ur ≤ 245kV) | F26: kV | G26: xxxxxxxxxx
B27: 2.8 | C27: 3.1.2 | D27: · | E27: Rated peak lightning impulse withstand voltage (Up) - Phase-to-earth and between phases | F27: kV | G27: =VLOOKUP($E$11,$M$589:$AP$608,6,FALSE) -> 650
B28: 2.9 | C28: 3.1.2 | D28: · | E28: Rated peak lightning impulse withstand voltage (Up) - Across open switching device | F28: kV | G28: 750
B29: 2.10 | C29: 3.1.2 | D29: · | E29: Rated switching impulse withstand voltage (Us) - Phase-to-earth and across open switching device - (Dry conditions) | F29: kV | G29: xxxxxxxxxx
B30: 2.11 | C30: 3.1.2 | D30: · | E30: Rated switching impulse withstand voltage (Us) - Between phases - (Dry conditions) | F30: kV | G30: xxxxxxxxxx
B31: 2.12 | C31: 3.1.2 | D31: · | E31: Rated switching impulse withstand voltage (Us) - Phase-to-earth and across open switching device - under Wet conditions as per SANS 62271-1 cl. 6.2 | F31: kV | G31: xxxxxxxxxx
B32: 2.13 | C32: 3.1.2 | D32: · | E32: Rated switching impulse withstand voltage (Us) - Between phases - under Wet conditions as per SANS 62271-1 cl. 6.2 | F32: kV | G32: xxxxxxxxxx
B33: 2.14 | C33: 3.1.3 | D33: · | E33: Rated frequency (fr) | F33: Hz | G33: 50
B34: 2.15 | C34: 3.1.4 | D34: · | E34: Rated normal current (Ir) - main circuit | F34: A | G34: =VLOOKUP($E$11,$M$589:$AP$608,8,FALSE) -> 3150
B35: 2.16 | C35: 3.1.4 f) | D35: · | E35: Calculated maximum continuous current - main circuit @ 40 0C ambient | F35: A | G35: xxxxxxxxxx
B36: 2.17 | C36: 3.1.4 f) | D36: · | E36: Calculated maximum continuous current - main circuit @ 45 0C ambient | F36: A | G36: xxxxxxxxxx
B37: 2.18 | C37: 3.1.4 g) | D37: · | E37: Maximum allowable temperature of main contacts (refer to Table 3 of SANS 62271-1) | F37: OC | G37: xxxxxxxxxx
B38: 2.19 | C38: 3.1.4 g) | D38: · | E38: Measured temperature rise (highest) of main contacts @ rated current (type test) | F38: K | G38: xxxxxxxxxx
B39: 2.20 | C39: 3.1.4 f) & g) | D39: · | E39: Maximum allowable temperature of bolted or equivalent connections (refer to Table 3 of SANS 62271-1) | F39: OC | G39: xxxxxxxxxx
B40: 2.21 | C40: 3.1.4 g) | D40: · | E40: Measured temperature rise (highest) of bolted or equiv connections @ rated current (type test) | F40: K | G40: xxxxxxxxxx
B41: 2.22 | C41: 3.1.4 f) & g) | D41: · | E41: Maximum allowable temperature of terminals for the connection to external conductors (refer to Table 3 of SANS 62271-1) | F41: OC | G41: xxxxxxxxxx
B42: 2.23 | C42: 3.1.4 g) | D42: · | E42: Measured temperature rise (highest) of terminals for the connection to external conductors @ rated current (type test) | F42: K | G42: xxxxxxxxxx
B43: 2.24 | C43: 3.1.4 | D43: · | E43: Contact resistance of the main circuit measured during temperature rise | F43: µΩ | G43: xxxxxxxxxx
B44: 2.25 | C44: 3.1.4 | D44: · | E44: Minimium contact resistance of the main circuit measured during temperature rise | F44: µΩ | G44: xxxxxxxxxx
B45: 2.26 | C45: 3.1.4 | D45: · | E45: Maximium contact resistance of the main circuit not to be exceeded when testing CB during maintenance/ repairs | F45: µΩ | G45: xxxxxxxxxx
B46: 2.27 | C46: 3.1.5 | D46: · | E46: Rated short-time withstand current (Ik) | F46: kA | G46: =VLOOKUP($E$11,$M$589:$AP$608,9,FALSE) -> 40
B47: 2.28 | C47: 3.1.6 | D47: · | E47: Rated peak withstand current (Ip) | F47: kA | G47: =VLOOKUP($E$11,$M$589:$AP$608,10,FALSE) -> 100
B48: 2.29 | C48: 3.1.7 | D48: · | E48: Rated duration of short circuit (tk) | F48: s | G48: 3
B49: 2.30 | C49: 3.1.8 | D49: · | E49: Rated d.c. supply voltage of closing and opening devices and of auxiliary and control circuits (Ua) | F49: V | G49: =VLOOKUP($E$11,$M$589:$AP$608,30,FALSE) -> 110
B50: 2.31 | C50: 3.1.8.1 | D50: · | E50: Rated a.c. supply voltage of heaters and other a.c. auxiliary circuits (Ua) | F50: V | G50: 230
B51: 2.32 | C51: 3.1.8.1 | D51: · | E51: Rated supply frequency of closing and opening devices and of auxiliary and control circuits | F51: Hz | G51: d.c.
B52: 2.33 | C52: 3.1.8.1 | D52: · | E52: Rated supply frequency of heaters and other a.c. auxiliary circuits | F52: Hz | G52: 50
B53: 2.34 | C53: 3.1.9 a) | D53: · | E53: Rated short-circuit breaking current (ISC) of circuit-breaker | F53: kA | G53: =VLOOKUP($E$11,$M$589:$AP$608,11,FALSE) -> 40
B54: 2.35 | D54: · | E54: - a.c. component of short-circuit breaking current | F54: kA | G54: xxxxxxxxxx
B55: 2.36 | D55: · | E55: - d.c. component of short-circuit breaking current | F55: % | G55: xxxxxxxxxx
B56: 2.37 | C56: 3.1.9 b) | D56: · | E56: Factor by which the 100 % symmetrical and asymmetrical single-phase rated short-circuit breaking current exceeds the three-phase rating | F56: pu | G56: =VLOOKUP($E$11,$M$589:$AZ$608,40,FALSE) -> xxxxxxxxxx
B57: 2.38 | C57: 3.1.19 | D57: · | E57: Circuit-breaker class S1 or class S2 | G57: =VLOOKUP($E$11,$M$589:$AP$608,26,FALSE) -> xxxxxxxxxx
B58: 2.39 | C58: 3.1.10 a) | D58: · | E58: First-pole-to-clear factor (kpp) for circuit-breaker | G58: =VLOOKUP($E$11,$M$589:$AP$608,12,FALSE) -> 1,5
B59: 2.40 | C59: 3.1.10 b) | D59: · | E59: Standard values of TRV related to the rated short-circuit breaking current (SANS 62271-100) | G59: =VLOOKUP($E$11,$M$589:$AP$608,13,FALSE) -> SANS 62271-100 Table 4
B60: 2.41 | C60: 3.1.10 b) | D60: · | E60: Peak value of TRV (uc) | F60: kA | G60: xxxxxxxxxx
B61: 2.42 | C61: 3.1.10 b) | D61: · | E61: Rate of rise of recovery voltage of TRV | F61: kV/μs | G61: xxxxxxxxxx
B62: 2.43 | C62: 3.1.10 b) | D62: · | E62: Time delay (td) of TRV | F62: μs | G62: xxxxxxxxxx
B63: 2.44 | C63: 3.1.10 b) | D63: · | E63: Amplitude factor (kaf) of TRV | F63: p.u. | G63: xxxxxxxxxx
B64: 2.45 | C64: 3.1.10 b) | D64: · | E64: Peak value of the Initial TRV (ITRV) | F64: kA | G64: xxxxxxxxxx
B65: 2.46 | C65: 3.1.10 b) | D65: · | E65: Rate of rise of recovery voltage of ITRV | F65: kV/μs | G65: xxxxxxxxxx
B66: 2.47 | C66: 3.1.11 | D66: · | E66: Rated short-circuit making current of circuit-breaker | F66: kA | G66: =VLOOKUP($E$11,$M$589:$AP$608,14,FALSE) -> 100
B67: 2.48 | C67: 3.1.12 a) to d) | D67: · | E67: Rated operating sequence for circuit-breaker | G67: =VLOOKUP($E$11,$M$589:$AP$608,15,FALSE) -> O-0,3s-CO-3m-CO (all poles)
B68: 2.49 | C68: 3.1.12 d) | D68: · | E68: Minimum resting time following rated operating sequence | F68: min | G68: xxxxxxxxxx
B69: 2.50 | C69: 3.1.13 | D69: · | E69: Characteristics for short-line faults tested in accordance with the standard | G69: SANS 62271-100 4.105 & 6.109
B70: 2.51 | C70: 3.1.14 | D70: · | E70: Rated out-of-phase making current for circuit-breakers | F70: kA | G70: =VLOOKUP($E$11,$M$589:$BA$608,41,FALSE) -> xxxxxxxxxx
B71: 2.52 | C71: 3.1.14 | D71: · | E71: Rated out-of-phase breaking current for circuit-breakers | F71: kA | G71: =VLOOKUP($E$11,$M$589:$BA$608,41,FALSE) -> xxxxxxxxxx
B72: 2.53 | C72: 3.1.15 c) & 3.1.19 | D72: · | E72: Classification of circuit-breaker according to its restrike performance (line- and cable-charging breaking current) | G72: =VLOOKUP($E$11,$M$589:$AP$608,16,FALSE) -> Class C2
B73: 2.54 | C73: 3.1.15 | D73: · | E73: Rated capacitive switching currents for circuit-breaker - line-charging breaking current | F73: A | G73: =VLOOKUP($E$11,$M$589:$AP$608,17,FALSE) -> 50
B74: 2.55 | C74: 3.1.15 | D74: · | E74: Rated capacitive switching currents for circuit-breaker - cable-charging breaking current | F74: A | G74: =VLOOKUP($E$11,$M$589:$AP$608,18,FALSE) -> 160
B75: 2.56 | C75: 3.1.15 c) & 3.1.19 | D75: · | E75: Classification of circuit-breaker according to its restrike performance (capacitor bank switching) | G75: =VLOOKUP($E$11,$M$589:$AP$608,19,FALSE) -> xxxxxxxxxx
B76: 2.57 | C76: 3.1.15 | D76: · | E76: Rated capacitive switching currents for circuit-breaker - single capacitor bank breaking current | F76: A | G76: =VLOOKUP($E$11,$M$589:$AP$608,20,FALSE) -> xxxxxxxxxx
B77: 2.58 | C77: 3.1.15 | D77: · | E77: Rated capacitive switching currents for circuit-breaker - back-to-back capacitor bank breaking current | F77: A | G77: =VLOOKUP($E$11,$M$589:$AP$608,21,FALSE) -> xxxxxxxxxx
B78: 2.59 | C78: 3.1.15 | D78: · | E78: Rated capacitive switching currents for circuit-breaker - back-to-back capacitor bank inrush making current | F78: kA | G78: =VLOOKUP($E$11,$M$589:$AP$608,22,FALSE) -> xxxxxxxxxx
B79: 2.60 | C79: 3.1.16 | E79: Inductive load switching tests performed in accordance to SANS 62271-110 (for Ur ≥52kV) | F79: Y/N | G79: N/A
B80: 2.61 | C80: 3.1.16 | D80: · | E80: Chopping number of the circuit-breaker for inductive load switching (used to determine suppression peak overvoltage factor) and re-ignition behaviour used to configure electronic controller | F80: λ | G80: xxxxxxxxxx
B81: 2.62 | C81: 3.1.17 | D81: · | E81: Rated opening time for circuit-breaker | F81: ms | G81: xxxxxxxxxx
B82: 2.63 | C82: 3.1.17 | D82: · | E82: Rated break-time for circuit-breaker (max 60ms for Un ≤ 132kV; max 50ms for Un >132kV | F82: ms | G82: shall not exceed 60
B83: 2.64 | C83: 3.1.17 | D83: · | E83: Rated closing time for circuit-breaker | F83: ms | G83: xxxxxxxxxx
B84: 2.65 | C84: 3.1.17 | D84: · | E84: Rated open-close time for circuit-breaker | F84: ms | G84: xxxxxxxxxx
B85: 2.66 | C85: 3.1.17 | D85: · | E85: Rated reclosing time for circuit-breaker | F85: ms | G85: xxxxxxxxxx
B86: 2.67 | C86: 3.1.17 | D86: · | E86: Rated close-open time for circuit-breaker | F86: ms | G86: xxxxxxxxxx
B87: 2.68 | C87: 3.1.17 | D87: · | E87: Rated pre-insertion time for circuit-breaker with pre-insertion resistor | F87: ms | G87: xxxxxxxxxx
B88: 2.69 | C88: 3.1.18 & 3.1.19 | D88: · | E88: Circuit-breaker mechanical endurance class | G88: =VLOOKUP($E$11,$M$589:$AP$608,23,FALSE) -> Class M2
B89: 2.70 | D89: · | E89: Number of mechanical operations for circuit-breaker | G89: =VLOOKUP($E$11,$M$589:$AP$608,24,FALSE) -> 10000
B90: 2.71 | C90: 3.1.19 | D90: · | E90: Classification of circuit-breakers as a function of electrical endurance (Class E1 or Class E2) | G90: =VLOOKUP($E$11,$M$589:$AP$608,25,FALSE) -> Yes
B92: 3 | C92: 3.2.1 | D92: Service conditions
B93: 3.1 | C93: 3.2.1 a) | D93: · | E93: Location (indoors/outdoors) | G93: Outdoors
B94: 3.2 | C94: 3.2.1 a) | D94: · | E94: Ambient air temperature range | F94: °C | G94: -10 to +40
B95: 3.3 | C95: 3.2.1 a) | D95: · | E95: Solar radiation | F95: W/m2 | G95: 1100
B96: 3.4 | C96: 3.2.1 a) | D96: · | E96: Altitude (amsl) | F96: m | G96: 1800
B97: 3.5 | C97: 3.2.1 a) | D97: · | E97: Class of pollution (SANS 60815-1:2009) | G97: =VLOOKUP($E$11,$M$589:$BB$608,42,FALSE) -> Very heavy ('e')
B98: 3.6 | C98: 3.2.1 a) | D98: · | E98: Average humidity | F98: % | G98: 95
B99: 3.7 | C99: 3.2.5 b) | D99: · | E99: Wind speed (velocity) | F99: m/s | G99: 34
B100: 3.8 | C100: 3.2.1 a) | D100: · | E100: Condensation and precipitations | G100: Yes
B101: 3.9 | C101: 3.2.1 a) | D101: · | E101: Seismic activity | F101: g | G101: 0,3
B103: 4 | C103: 3.2.2 | D103: General
B104: 4.1 | C104: 3.2.2 a) | D104: · | E104: Circuit-breaker compliant to SANS 62271-100 | G104: Yes
B105: 4.2 | C105: 3.2.2 b) | D105: · | E105: Circuit-breaker design (live-tank / dead-tank) | G105: =VLOOKUP($E$11,$M$589:$BC$608,43,FALSE) -> Live-tank
B106: 4.3 | D106: · | E106: Circuit-breaker manufacturer | G106: xxxxxxxxxx
B107: 4.4 | D107: · | E107: Circuit-breaker country of origin | G107: xxxxxxxxxx
B108: 4.5 | D108: · | E108: Circuit-breaker model/type designation | G108: xxxxxxxxxx
B109: 4.6 | C109: 3.2.23.1 | D109: · | E109: Circuit-breaker total mass | F109: kg | G109: xxxxxxxxxx
B110: 4.7 | C110: 3.2.2 c) | D110: · | E110: CTs required | G110: =VLOOKUP($E$11,$M$589:$BD$608,44,FALSE) -> No
B111: 4.8 | E111: - CT manufacturer | G111: =IF($G$110="Yes","xxxxxxxxxx","N/A") -> N/A
B112: 4.9 | E112: - CT country of origin | G112: =IF($G$110="Yes","xxxxxxxxxx","N/A") -> N/A
B113: 4.10 | C113: 3.2.2 d | D113: · | E113: Support structure design | G113: =VLOOKUP($E$11,$M$589:$BE$608,45,FALSE) -> 2 column support with common base frame
B114: 4.11 | C114: 3.2.2 d) | E114: - Steel support structure to be supplied with circuit-breaker | F114: Y/N | G114: =VLOOKUP($E$11,$M$589:$BF$608,46,FALSE) -> No
B115: 4.12 | C115: 3.2.2 e) | E115: - Circuit-breaker pole operation | G115: =VLOOKUP($E$11,$M$589:$BI$608,31,FALSE) -> 3-pole operated (3P)
B116: 4.13 | C116: 3.2.2 e) | E116: - Stored energy operation for circuit-breaker mechanism | G116: Yes
B117: 4.14 | C117: 3.2.2 e) | E117: - Energy storage device | G117: Spring
B118: 4.15 | E118: - Operating drive mechanism country of origin | G118: xxxxxxxxxx
B119: 4.16 | E119: - Operating drive mechanism model/type designation | G119: xxxxxxxxxx
B120: 4.17 | C120: 3.2.2 e) | E120: NOTE: When a feeder circuit-breaker is in the closed position and the spring has been charged, it shall be able to “TRIP-CLOSE-TRIP” before the spring needs to be recharged | G120: Yes
B121: 4.18 | C121: 3.2.2 e) | E121: - Manual and motorised spring charging | G121: Yes
B122: 4.19 | C122: 3.2.2 e) | E122: - Manual and electric energy release | G122: Yes
B123: 4.20 | C123: 3.2.2 e) | E123: - Mechanical energy stored in charged spring | F123: kJ | G123: xxxxxxxxxx
B124: 4.21 | C124: 3.2.2 e) | E124: - Mechanical device provided to prevent over-charging of the closing spring for manual and motor charging | G124: Yes
B125: 4.22 | C125: 3.2.2 e) | E125: - Safe conditions produced in the case of failure to latch | G125: Yes
B126: 4.23 | C126: 3.2.2 f) | E126: - Circuit-breaker insulation and/or extinguishing medium | G126: =VLOOKUP($E$11,$M$589:$BG$608,47,FALSE) -> SF6/Enviro-friendly
B127: 4.24 | E127: - Mass of insulation and/or extinguishing medium | F127: kg | G127: xxxxxxxxxx
B128: 4.25 | C128: 3.2.2 f) | E128: - Type of interrupter design (puffer, self-blast, etc.) | G128: xxxxxxxxxx
B129: 4.26 | C129: 3.2.2 f) | E129: - Configuration of moving contacts (single, double or triple motion) (Subject to Eskom approval) | G129: xxxxxxxxxx
B130: 4.27 | C130: 3.2.2 g) | E130: - Minimim expected life-span of circuit-breaker | F130: years | G130: > 40
B131: 4.28 | E131: - minimal maintenance accordance to electrical and mechanical endurance | F131: Y/N | G131: Yes
B133: 5 | C133: 3.2.3 | D133: Construction requirements
C134: 3.2.3 | D134: · | E134: Design and layout of the circuit-breaker :
B135: 5.1 | C135: 3.2.3 a) | E135: - standardised circuit-breaker elements to maximise interchageability | F135: Y/N | G135: Yes
B136: 5.2 | C136: 3.2.3 b) | E136: - modular, pre-assembled elements shall be designed to facilitate handling and installation | F136: Y/N | G136: Yes
B137: 5.3 | C137: 3.2.3 c) | E137: - designed to facilitate ease of construction and maintenance | F137: Y/N | G137: Yes
B138: 5.4 | C138: 3.2.3 d) | E138: - Filter material housing located to provide easy access during maintenance | F138: Y/N | G138: Yes
B140: 6 | C140: 3.2.4 | D140: Circuit-breaker operating mechanism enclosure requirements
B141: 6.1 | C141: 3.2.4 a) | D141: · | E141: Operating mechanisms, local control facilities and all parts requiring lubrication protected by weatherproof enclosures | F141: Y/N | G141: Yes
B142: 6.2 | C142: 3.2.4 a) | E142: - degree of protection for enclosures containing exposed bearings, auxiliary switches, motors and other electrical devices | F142: IP | G142: IP 55
B143: 6.3 | C143: 3.2.4 a) | E143: - degree of protection for all open areas in the circuit-breaker common base frame as well as externally mounted indicating devices (where applicable) | F143: IP | G143: IP 2X
B144: 6.4 | C144: 3.2.4 a) | E144: - degree of protection for all other enclosures | F144: IP | G144: IP 54
B145: 6.5 | C145: 3.2.4 b) & 3.2.6 | D145: · | E145: Operating mechanism enclosure, handles and fixings material | G145: 3CR12 stainless steel/ Painted aluminium
B146: 6.6 | C146: 3.2.4 b) & 3.2.6 | D146: · | E146: Operating mechanism enclosure corrosion protection in accordance with 3.2.6 of DSP 34-1658 | F146: Y/N | G146: Yes
B147: 6.7 | C147: 3.2.4 c) | D147: · | E147: Operating mechanism enclosures arranged to facilitate easy access from all sides | F147: Y/N | G147: Yes
B148: 6.8 | C148: 3.2.4 c) | E148: - all fastenings compliant with 240-56063756 and subject to Eskom approval | F148: Y/N | G148: Yes
B149: 6.9 | C149: 3.2.4 d) | D149: · | E149: Circuit-breaker designed for operation from the front of the operating mechanism enclosure | F149: Y/N | G149: Yes
B150: 6.10 | C150: 3.2.4 e) | D150: · | E150: Access to the operating mechanism controls, terminals strips etc. provided through hinged front access door | F150: Y/N | G150: Yes
B151: 6.11 | C151: 3.2.4 f) & 3.2.23.1 b) iii. | D151: · | E151: Maximum height to top of mechanism allows servicing from ground (Un ≤ 132kV) or viewing indications and reading from ground (Un >132kV) - it shall be shown clearly on the outline General Arrangement (GA) drawing | F151: Y/N | G151: Yes
B152: 6.12 | C152: 3.2.4 g) | D152: · | E152: Front access door secured with a heavy-duty locking mechanism | F152: Y/N | G152: Yes
B153: 6.13 | C153: 3.2.4 h) | D153: · | E153: Padlocking facility shackle diameter | F153: mm | G153: 6
B154: 6.14 | C154: 3.2.4 i) | D154: · | E154: Front access door equipped with travel stop | F154: Y/N | G154: Yes
B155: 6.15 | C155: 3.2.4 j) | D155: · | E155: Rigid, corrosion resistant documentation pocket provided on inside of front access door, securely attached no protrusion through door | F155: Y/N | G155: Yes
B156: 6.16 | C156: 3.2.4 k) | D156: · | E156: Facilites provided for securing operating tools on inside of front access door | F156: Y/N | G156: Yes
B157: 6.17 | C157: 3.2.4 l) | D157: · | E157: Earthing of operating mechanism enclosure in accordance with 240-56063756 | F157: mm | G157: Yes
B158: 6.18 | C158: 3.2.4 m) & 3.2.21 c) | D158: · | E158: Provision for bottom/ below entry of all control cabling into operating mechanism enclosure | F158: Y/N | G158: Yes
B159: 6.19 | C159: 3.2.4 n) | D159: · | E159: Metallic cable racking provided for inter-pole cabling? | F159: Y/N | G159: No
B160: 6.20 | C160: 3.2.4 o) | D160: · | E160: Upper surfaces of enclosure shaped/sloped to prevent the accumulation of water | F160: Y/N | G160: Yes
B161: 6.21 | C161: 3.2.4 p) | D161: · | E161: Gasket material offered (O-rings) | G161: Neoprene rubber/ Nitrile rubber/ Cork
B162: 6.22 | C162: 3.2.4 q) | D162: · | E162: Gauze-covered drain hole provided (> 25 mm) | F162: Y/N | G162: Yes
B163: 6.23 | C163: 3.2.4 r) | D163: · | E163: Enclosure lifting eyes provided | G163: Top
B164: 6.24 | C164: 3.2.4 s) | D164: · | E164: Enclosure colour in accordance with SANS 1019 | G164: Light grey (G29)
B165: 6.25 | C165: 3.2.4 t) | D165: · | E165: Mechanical trip facility located inside mechanism enclosure (clearly marked with warning labels) | F165: Y/N | G165: Yes
B167: 7 | C167: 3.2.5 | D167: Circuit-breaker supporting structure
C168: 3.2.5 a) & 3.2.23.1 | D168: · | E168: Mechanical loads (in accordance to SANS 62271-100 clause 6.101.6) and parameters relating to the design of the circuit-breaker support structure and foundation
B169: 7.1 | C169: 3.2.5 a) | D169: · | E169: - “static” dead weight of the circuit-breaker | F169: N | G169: xxxxxxxxxx
B170: 7.2 | D170: · | E170: - rated “static” horizontal terminal force (longitudinal) FthA of the circuit-breaker due to connected conductors | F170: N | G170: 1,000
B171: 7.3 | D171: · | E171: - rated “static” vertical terminal force (upward & downward) Ftv of the circuit-breaker due to connected conductors | F171: N | G171: 750
B172: 7.4 | C172: 3.2.5 a) | D172: · | E172: - rated “static” terminal load horizontal force FshA of the circuit-breaker due to connected conductors | F172: N | G172: xxxxxxxxxx
B173: 7.5 | E173: - rated “static” horizontal terminal force (transversal) FthB of the circuit-breaker due to connected conductors | F173: N | G173: 750
B174: 7.6 | C174: 3.2.5 a) | D174: · | E174: - rated “static” terminal load horizontal force FshB of the circuit-breaker due to connected conductors | F174: N | G174: xxxxxxxxxx
B175: 7.7 | C175: 3.2.5 a) | D175: · | E175: - rated “static” terminal load vertical force Fsv of the circuit-breaker due to connected conductors | F175: N | G175: xxxxxxxxxx
B176: 7.8 | D176: · | E176: - horizontal force due to wind pressure on ice coated circuit-breaker Fwh | F176: N | G176: xxxxxxxxxx
B177: 7.9 | C177: 3.2.5 a) | D177: · | E177: - “dynamic” horizontal force exerted during operation on the foundation | F177: N | G177: xxxxxxxxxx
B178: 7.10 | C178: 3.2.5 a) | D178: · | E178: - “dynamic” vertical force exerted during operation on the foundation | F178: N | G178: xxxxxxxxxx
B179: 7.11 | C179: 3.2.5 a) | D179: · | E179: - “dynamic” moment (torque) exerted during operation about the foundation | F179: Nm | G179: xxxxxxxxxx
B180: 7.12 | C180: 3.2.5 a) | D180: · | E180: - “dynamic” horizontal force exerted between circuit-breaker poles (centre phase interrupter chamber) during a rated (terminal fault) short-circuit | F180: N | G180: xxxxxxxxxx
B181: 7.13 | D181: · | E181: Rated static terminal load (resultant force) - Fsr1 | F181: N | G181: xxxxxxxxxx
B182: 7.14 | D182: · | E182: Rated static terminal load (resultant force) - Fsr2 | F182: N | G182: xxxxxxxxxx
B183: 7.15 | D183: · | E183: Rated static terminal load (resultant force) - Fsr3 | F183: N | G183: xxxxxxxxxx
B184: 7.16 | D184: · | E184: Rated static terminal load (resultant force) - Fsr4 | F184: N | G184: xxxxxxxxxx
B185: 7.17 | C185: 3.2.5 a) | D185: · | E185: - wind force (load) exerted on the circuit-breaker due to the wind velocity of 34 m/s | F185: N | G185: xxxxxxxxxx
B186: 7.18 | C186: 3.2.5 a) | D186: · | E186: - maximum torque required for the foundation holding down bolt nuts | F186: Nm | G186: xxxxxxxxxx
B187: 7.19 | D187: · | E187: - centre of gravity of the circuit-breaker | G187: xxxxxxxxxx
B188: 7.20 | C188: 3.2.5 b) | D188: · | E188: Circuit-breaker steel support structure to be designed by manufacturer | F188: Y/N | G188: =VLOOKUP($E$11,$M$589:$BZ$608,51,FALSE) -> No
B189: 7.21 | C189: 3.2.5 b) | D189: · | E189: Circuit-breaker concrete foundation to be designed by manufacturer | F189: Y/N | G189: =VLOOKUP($E$11,$M$589:$BZ$608,52,FALSE) -> No
B190: 7.22 | C190: 3.2.5 c) | D190: · | E190: Common base frame supplied with circuit-breaker (Un ≤ 132 kV) | F190: Y / N / N/A | G190: =VLOOKUP($E$11,$M$589:$BZ$608,50,FALSE) -> Yes
B191: 7.23 | C191: 3.2.5 c) & d) | D191: · | E191: Circuit-breaker designed to interface with the standard Eskom steel support structure | F191: Y/N | G191: =VLOOKUP($E$11,$M$589:$BZ$608,53,FALSE) -> Yes
B192: 7.24 | C192: 3.2.5 c) & d) | D192: · | E192: Circuit-breaker support structure designed to interface with the standard Eskom concrete foundation | F192: Y/N | G192: =VLOOKUP($E$11,$M$589:$BZ$608,54,FALSE) -> Yes
B193: 7.25 | C193: 3.2.5 c) & d) | D193: · | E193: Circuit-breaker steel support structure drawing (240-56063756 Table 6) | G193: =VLOOKUP($E$11,$M$589:$BZ$608,48,FALSE) -> D-DT-5200 Sh 2
B194: 7.26 | C194: 3.2.5 c) & d) | D194: · | E194: Circuit-breaker concrete foundation drawing (240-56063756 Table 6) | G194: =VLOOKUP($E$11,$M$589:$BZ$608,49,FALSE) -> D-DT-5200 Sh 1
B195: 7.27 | C195: 3.2.5 e) | D195: · | E195: Rated static terminal load according to SANS 62271-100 Clause 6.101.6 | F195: Y/N | G195: =VLOOKUP($E$11,$M$589:$DA$608,69,FALSE) -> No
B196: 7.28 | D196: · | E196: - rated static terminal load | F196: N | G196: xxxxxxxxxx
B198: 8 | C198: 3.2.6 | D198: Corrosion protection and lubrication
B199: 8.1 | C199: 3.2.6 a) | D199: · | E199: Corrosion specification | G199: DSP 34-1658/ 240-75655504
B200: 8.2 | C200: 3.2.6 a) | D200: · | E200: Corrosivity rating of environment | G200: "high" to "very high" | H200: xxxxxxxxxx
B201: 8.3 | C201: 3.2.6 a) | E201: Corrosivity rating environment - ‘C4’ and ‘C5’ (i.e. marine) | G201: C5 (marine) | H201: xxxxxxxxxx
B202: 8.4 | C202: 3.2.6 b) | D202: · | E202: Minimum detailed specification number for exposed metal:- | F202: DS | G202: DS-11
B203: 8.5 | E203: - 3CR12, where applicable | F203: DS | G203: DS-11
B204: 8.6 | E204: - Stainless steel, where applicable | F204: DS | G204: DS-18
B205: 8.7 | E205: - Hot dip galvanised steel, where applicable | F205: DS | G205: DS-13
B206: 8.8 | C206: 3.2.6 c) | E206: - Equivalent detailed specification number offered for operating mechanism enclosures | F206: DS | G206: xxxxxxxxxx
B207: 8.9 | C207: 3.2.6 c) | E207: - Equivalent detailed specification number offered for all bolts, nuts and washers | F207: DS | G207: xxxxxxxxxx
B208: 8.10 | C208: 3.2.6 c) | E208: - Equivalent detailed specification number offered for all structural steel | F208: DS | G208: xxxxxxxxxx
B209: 8.11 | C209: 3.2.6 c) | E209: - Equivalent detailed specification number offered for all other exposed metal (excluding main terminals) | F209: DS | G209: xxxxxxxxxx
... 366 more rows

Sheet Deviation Schedule- 132kV CB 3P
B1: Deviation Schedule - 132 kV Live-tank circuit-breaker 3P offered
B2: Any Deviation offered to this (240-56063756) Standard specification shall be listed below with reasons for deviations. In addition evidence shall be provided that the deviation proposed will be at least more cost-effective than that spcified by Eskom.
B3: Item | C3: Clause | D3: Proposed Deviation
D5: NO DEVIATIONS TO SPECIFICATION
B40: SIGNATURES
B43: Supplier | E43: Name (Print) | G43: Sign | H43: Date
B46: Factory | E46: Name (Print) | G46: Sign | H46: Date
B49: Eskom | E49: Name (Print) | G49: Sign | H49: Date

Sheet Tool,Spare,Drwg,TypeT 132kV 3P
B1: Tools, Spares, Drawings and Type Test reports/ certificates Schedule for 132 kV Live-tank circuit-breaker 3P offered
B2: OUTDOOR CIRCUIT-BREAKERS
B3: CB Type and Ratings:
B4: 1 | C4: 2 | E4: 3 | G4: 4 | H4: 5
B5: T.1 | C5: Full set of operating tools required 1 set per circuit-breaker upon delivery at site (provide a detailed list)
B6: Item | C6: Quantity | E6: Description | G6: Drawing Number | H6: Part Number
B7: 1
B8: 2
B9: 3
B10: 4
B11: 5
B12: 6
B13: 7
B14: 8
B15: 9
B16: 10
B17: 11
B18: 12
B19: 13
B20: T.2 a) | C20: Standard tools available for minor maintenance (provide a detailed list)
B21: Item | C21: Quantity | E21: Description | G21: Drawing Number | H21: Part Number
B22: 1
B23: 2
B24: 3
B25: 4
B26: 5
B27: 6
B28: 7
B29: 8
B30: 9
B31: 10
B32: T.2 b) | C32: Specialised tools available for major maintenance purposes (provide a detailed list)
B33: Item | C33: Quantity | E33: Description | G33: Drawing Number | H33: Part Number
B34: 1
B35: 2
B36: 3
B37: 4
B38: 5
B39: 6
B40: 7
B41: 8
B42: 9
B43: 10
B44: T.3 a) | C44: Spares available for maintenance - for breakdown repairs (provide a detailed list)
B45: Item | C45: Quantity | E45: Description | G45: Drawing Number | H45: Part Number
B46: 1
B47: 2
B48: 3
B49: 4
B50: 5
B51: 6
B52: 7
B53: 8
B54: 9
B55: 10
B56: T.3 b) | C56: Spares available for maintenance - for non-intrusive maintenance minor inspection (provide a detailed list)
B57: Item | C57: Quantity | E57: Description | G57: Drawing Number | H57: Part Number
B58: 1
B59: 2
B60: 3
B61: 4
B62: 5
B63: 6
B64: 7
B65: 8
B66: 9
B67: 10
B68: T.3 c) | C68: Spares available for maintenance -for intrusive maintenance major overhaul inspection (provide a detailed list)
B69: Item | C69: Quantity | E69: Description | G69: Drawing Number | H69: Part Number
B70: 1
B71: 2
B72: 3
B73: 4
B74: 5
B75: 6
B76: 7
B77: 8
B78: 9
B79: 10
B80: 11
B81: 12
B82: T.3 d) | C82: Complete Spare parts (provide a detailed list)
B83: Item | C83: Quantity | E83: Description | G83: Drawing Number | H83: Part Number
B84: 1
B85: 2
B86: 3
B87: 4
B88: 5
B89: 6
B90: 7
B91: 8
B92: 9
B93: 10
B94: 11
B95: 12
B96: 13
B97: 14
B98: 15
B99: 16
B100: 17
B101: 18
B102: 19
B103: 20
B104: 21
B105: 22
B106: 23
B107: 24
B108: 25
B109: 26
B110: 27
B111: 28
B112: 29
B113: 30
B114: T.4 | C114: Drawings (provide the complete list)
B115: Item | C115: Revision No | E115: Description | G115: Drawing Number | H115: Eskom No (to be allocated)
B116: 4.1 | E116: General Arrangement (GA) outline drawing
B117: 4.2 | E117: Drawing of all insulators used in the circuit-breaker
B118: 4.3 | E118: Generic layout of nameplates - complete CB, Pole, Mechanism and Motors
B119: 4.4 | E119: Generic auxiliary and control circuit schematic wiring diagram
B120: 4.5 | E120: GA drawing of the operating mechanism enclosure
B121: 4.6 | E121: Steel support structure dimensioned outline and general arrangement
B122: 4.7 | E122: Steel support structure dimensioned outline and general arrangement
B123: 4.8 | E123: Other submitted drawings (namely):-
B124: 4.9 | E124: Other submitted drawings (namely):-
B125: T.5 | C125: Type Tests Reports/ Certificates (provide the complete list of type-tests performed as per Spec clause 3.3.2)
B126: Item | C126: Date test performed | E126: Description | F126: Passed test/ failed | G126: Test Facility | H126: Test Report Number
B127: 5.1 | E127: Insulation level (SANS 62271-100 6.2); dry lightning impulse withstand voltage test (BIL or LIWL)
B128: 5.2 | E128: Dry power frequency withstand level voltage tests (PFWL) (SANS 62271-100 )
B129: 5.3 | E129: Wet power frequency voltage withstand level (PFWL) test (SANS 62271-100 )
B130: 5.4 | E130: Dry switching impulse withstand level voltage test (SIWL) (SANS 62271-100)
B131: 5.5 | E131: Temperature rise and measurement of resistance of circuits (SANS 62271-100 6.5 & 6.4)
B132: 5.6 | E132: Breaking current withstand - main circuit (SANS 62271-100 6.6)
B133: 5.7 | E133: Short-circuit making and breaking capacities (SANS 62271-100 6.102 to 6.106)
B134: 5.8 | E134: Critical current tests (where applicable) (SANS 62271-100 6.107)
B135: 5.9 | E135: Single-phase tests (for Un ≥ 66 kV ) (SANS 62271-100 6.108)
B136: 5.10 | E136: Double earth fault tests (for Un ≥ 132 kV ) (SANS 62271-100 6.108)
B137: 5.11 | E137: Short-line fault tests (for class S2 circuit-breakers and Un ≥ 66 kV) (SANS 62271-100 6.109)
B138: 5.12 | E138: Out-of-phase making and breaking tests (applicable if an out-of-phase rating is assigned) (SANS 62271-100 6.110)
B139: 5.13 | E139: Capacitive current switching tests (SANS 62271-100 6.111)
B140: 5.14 | E140: Switching of shunt reactors (for Un ≥ 66 kV ) (SANS 62271-110)
B141: 5.15 | E141: Electrical endurance tests (for class E2 circuit-breakers) (SANS 62271-100 6.112)
B142: 5.16 | E142: Circuit-breaker mechanical operation (SANS 62271-100 6.101.2.1 - 6.101.2.3)
B143: 5.17 | E143: Circuit-breaker extended mechanical endurance tests (for class M2 circuit-breakers) (SANS 62271-100 6.101.2.4)
B144: 5.18 | E144: Radio interference voltage tests (for Un ≥ 132 kV) (SANS 62271-100 6.3)
B145: 5.19 | E145: Verification of the protection (IP coding) (SANS 62271-100 6.7)
B146: 5.20 | E146: Tightness test (SANS 62271-100 6.8
B147: 5.21 | E147: EMC tests (SANS 62271-100 6.9) - where applicable
B148: 5.22 | E148: X-radiation test procedures for vacuum interrupters (SANS 62271-100) - where applicable
B149: 5.23 | E149: Static terminal load tests (for Un ≥ 66 kV ) (SANS 62271-100 6.101.6)
B150: 5.24 | E150: Additional tests on auxiliary and control circuits (SANS 62271-100 6.10)
B151: 5.25 | E151: Other special tests performed:
B152: 5.26 | E152: Other special tests performed:
B153: 5.27 | E153: Other special tests performed:
B155: SIGNATURES
B158: Supplier | E158: Name (Print) | G158: Sign | H158: Date
B161: Factory | E161: Name (Print) | G161: Sign | H161: Date
B164: Eskom | E164: Name (Print) | G164: Sign | H164: Date
